Cogmind - Beta 10.1 *** ADVENTURER MODE // 2020.10.20 @ 22:29:38 Player: shisihs Result: Destroyed by Y-64 Sentinel with KE Penetrator Performance ------------- Evolutions (3) 1500 Regions Visited (10) 2000 Robots Destroyed (65) 325 Value Destroyed (2150) 2150 Prototype IDs (2) 40 Alien Tech Used (0) 0 Bonus (193) 193 TOTAL SCORE: 6208 Bonus ------- Follower Combat Kills 25 Aligned with FarCom 300 Friendly Fire -132 Cogmind --------- Core Integrity 0/700 Matter 285/300 Energy 265/265 System Corruption 1% Temperature Cool (9) Movement Treading (166) Location -7/Lower Caves Parts ------- > --- POWER (1) -------- Improved Ion Engine > --- PROPULSION (4) --- Light Treads Armored Treads Armored Treads Carbon-fiber Leg > --- UTILITY (6) ------ Medium Storage Unit Large Storage Unit Signal Interpreter Improved Terrain Scanner Advanced Terrain Scan Processor Thief Drone Bay (0/3) > --- WEAPON (2) ------- Great Maul > --- INVENTORY (14) --- Light Ion Engine Improved Deuterium Engine Makeshift Salvage Targeting Computer Makeshift Salvage Targeting Computer Makeshift Armor Plating Remote Shield Assault Rifle Battle Rifle Heavy Flak Cannon Plasma Flamer Peak State ------------ > --- POWER ------------ Light Angular Momentum Engine > --- PROPULSION ------- Light Treads Armored Treads Armored Treads Carbon-fiber Leg > --- UTILITY ---------- Medium Storage Unit Large Storage Unit Signal Interpreter Improved Terrain Scanner Advanced Terrain Scan Processor Thief Drone Bay > --- WEAPON ----------- Phase Cannon Battle Rifle > --- INVENTORY -------- Light Ion Engine Improved Ion Engine Improved Deuterium Engine Makeshift Salvage Targeting Computer Makeshift Salvage Targeting Computer Makeshift Armor Plating Remote Shield Assault Rifle Heavy Flak Cannon Plasma Flamer Great Maul [Rating: 41] Favorites ----------- Power Improved Ion Engine Engine Improved Ion Engine Power Core Light Nuclear Core Propulsion Aluminum Leg Treads Improved Treads Leg Aluminum Leg Utility Large Storage Unit Device Thief Drone Bay Storage Large Storage Unit Processor Signal Interpreter Protection Power Shielding Weapon Heavy Assault Rifle Energy Gun Particle Gun Energy Cannon EM Pulse Cannon Ballistic Gun Heavy Assault Rifle Ballistic Cannon Gauss Cannon Special Weapon Mining Laser Impact Weapon Great Maul Build | -11 -10 -10 -9 -9 -9 -8 -8 -7 -7 -7 ------- Run | Scr Mat Min Mat Min Exi Min Mat Fac Low Low Slots Evolved 6 | . . . 2 . . . 2 2 . . Power . | . . . . . . . . . . . Propulsion 2 | . . . . . . . 1 1 . . Utility 4 | . . . 2 . . . 1 1 . . Weapon . | . . . . . . . . . . . Parts Attached 72 | 8 7 3 12 . . . 8 10 15 9 Power 9 | 1 2 . 1 . . . 1 1 2 1 Engine 6 | 1 2 . 1 . . . . . 1 1 Core 3 | . . . . . . . 1 1 1 . Reactor . | . . . . . . . . . . . Propulsion 18 | 2 . . 2 . . . 5 3 2 4 Treads 7 | 2 . . 2 . . . . . . 3 Leg 11 | . . . . . . . 5 3 2 1 Wheel . | . . . . . . . . . . . Hover . | . . . . . . . . . . . Flight . | . . . . . . . . . . . Utility 17 | 3 2 1 5 . . . 1 2 3 . Device 7 | 1 . 1 1 . . . . 1 3 . Storage 3 | 1 1 . . . . . 1 . . . Processor 5 | 1 . . 3 . . . . 1 . . Hackware . | . . . . . . . . . . . Protection 2 | . 1 . 1 . . . . . . . Artifact . | . . . . . . . . . . . Weapon 28 | 2 3 2 4 . . . 1 4 8 4 Energy Gun 7 | 1 3 1 1 . . . . . 1 . Energy Cannon 3 | . . . . . . . 1 . 1 1 Ballistic Gun 13 | 1 . . 3 . . . . 3 5 1 Ballistic Cannon 1 | . . . . . . . . 1 . . Launcher . | . . . . . . . . . . . Special Weapon 2 | . . 1 . . . . . . . 1 Impact Weapon 2 | . . . . . . . . . 1 1 Slashing Weapon . | . . . . . . . . . . . Piercing Weapon . | . . . . . . . . . . . Special Melee Weapon . | . . . . . . . . . . . Unidentified Prototypes 2 | . . 1 1 . . . . . . . Parts Lost 23 | . . . 3 . . . 1 . 15 4 Power 3 | . . . . . . . . . 2 1 Propulsion 6 | . . . . . . . 1 . 4 1 Utility 2 | . . . . . . . . . 2 . Weapon 12 | . . . 3 . . . . . 7 2 Highest Loss Streak 15 | . . . 2 . . . 1 . 15 2 Average Slot Usage (%) 95 | . 99 100 98 100 100 100 95 97 87 88 Engine 8 | . 14 14 11 11 11 11 8 . 3 6 Core 1 | . . . . . . . . 7 3 . Treads 13 | . 28 28 22 22 22 22 6 . . 9 Leg 8 | . . . . . . . 16 29 18 10 Device 5 | . 7 10 9 . . . . 2 7 15 Storage 13 | . 14 14 11 11 11 11 18 15 15 15 Processor 16 | . . . 12 22 22 22 18 18 18 15 Protection 6 | . 5 3 11 11 11 11 9 7 3 . Energy Gun 3 | . 24 19 7 . . . . . . . Ballistic Gun 13 | . 3 . 13 22 22 22 12 11 10 13 Naked Turns . | . . . . . . . . . . . Heaviest Build 48 | 13 28 31 34 30 30 30 41 44 43 48 Greatest Support 60 | 40 40 40 46 46 46 46 46 40 40 60 Greatest Overweight (x) 14 | 3 . . 1 . . . 1 1 14 1 Average Overweight (x) . | . . . . . . . . . 1 . Largest Inventory Capacity 14 | 6 10 10 10 10 10 10 14 14 14 14 Average Capacity 11 | 5 9 10 10 10 10 10 14 14 14 14 Most Carried 14 | 6 10 10 10 10 10 10 14 14 14 13 Average Carried 10 | 3 9 9 9 10 10 10 11 13 8 10 Final Capacity 14 | 6 10 10 10 10 10 10 14 14 14 14 Final Carried 14 | 6 10 10 10 10 10 10 14 14 10 10 Class Distribution -------------------- 66% | Mutant 33% | Scavenger-Mutant Dominant Class ---------------- Mutant | -10/Materials Mutant | -10/Mines Mutant | -9/Materials Mutant | -9/Mines Mutant | -9/Exiles Mutant | -8/Mines Mutant | -8/Materials Scavenger-Mutant | -7/Factory Scavenger-Mutant | -7/Lower Caves Scavenger-Mutant | -7/Lower Caves Resources | -11 -10 -10 -9 -9 -9 -8 -8 -7 -7 -7 ----------- Run | Scr Mat Min Mat Min Exi Min Mat Fac Low Low Matter Collected 1293 | 301 48 50 158 52 . . 210 113 291 70 Remotely . | . . . . . . . . . . . Salvage Created 2404 | 128 228 100 289 52 . . 647 294 408 258 Parts 147 | 13 19 4 19 7 . . 39 18 19 9 Haulers Intercepted . | . . . . . . . . . . . Recyclers Shooed 2 | 1 . . 1 . . . . . . . Parts Field Recycled . | . . . . . . . . . . . Retrieved Matter . | . . . . . . . . . . . Parts Self-Destructed 33 | . . . . . . . . . 24 9 Prevented . | . . . . . . . . . . . Kills | -11 -10 -10 -9 -9 -9 -8 -8 -7 -7 -7 ------- Run | Scr Mat Min Mat Min Exi Min Mat Fac Low Low Combat Hostiles Destroyed 56 | . 7 3 8 2 . . 15 8 8 5 Melee 2 | . . . . . . . . . 1 1 Guns 37 | . 7 2 8 2 . . 8 5 4 1 Cannons 13 | . . . . . . . 7 1 2 3 AOE 2 | . . . . . . . . 2 . . Classes Destroyed 11 | 2 3 . 2 1 . . . 1 2 . Worker 1 | . . . . 1 . . . . . . Tunneler 3 | 3 . . . . . . . . . . Recycler 1 | 1 . . . . . . . . . . Watcher 3 | . 1 . 1 . . . 1 . . . Swarmer 17 | . 3 . 3 2 . . 5 4 . . Grunt 26 | . 4 3 3 . . . 9 3 1 3 Brawler 1 | . . . 1 . . . . . . . Duelist 5 | . . . . . . . . . 4 1 Sentry 4 | . . . 2 . . . 1 . 1 . Hunter 1 | . . . . . . . . . 1 . Programmer 3 | . . . . . . . . 1 1 1 Best Kill Streak 8 | 4 3 3 3 2 . . 8 3 4 2 Combat Bots Only 5 | . 3 3 3 2 . . 5 3 4 2 Max Kills in Single Turn 2 | 1 1 2 1 1 . . 1 2 1 1 Gunslinging 1 | . . 1 . . . . . . . . Exploded 2 | . . . . . . . . 2 . . Melee 1 | . . . . . . . . . 1 1 Uniques/NPCs Destroyed . | . . . . . . . . . . . Combat | -11 -10 -10 -9 -9 -9 -8 -8 -7 -7 -7 -------- Run | Scr Mat Min Mat Min Exi Min Mat Fac Low Low Damage Taken 4475 | . 269 33 470 32 . . 545 399 1922 805 Core 1078 | . 110 . 93 . . . 161 26 605 83 Absorbed by Shields 15 | . . . . . . . . 15 . . Core Remaining (%) 75 | 100 . 56 . . . 76 70 . . . Volleys Fired 160 | 7 19 12 28 5 . . 31 16 30 12 Largest 2 | 2 2 2 2 2 . . 2 2 2 2 Hottest 190 | 60 130 130 130 46 . . 86 86 85 190 Shots Fired 275 | 14 32 18 48 10 . . 62 31 45 15 Gun 227 | 14 32 12 48 10 . . 45 25 33 8 Cannon 41 | . . . . . . . 17 6 12 6 Launcher . | . . . . . . . . . . . Special 7 | . . 6 . . . . . . . 1 Kinetic 159 | 7 . . 26 10 . . 45 25 38 8 Thermal 93 | 7 32 18 22 . . . . . 7 7 Explosive . | . . . . . . . . . . . Electromagnetic 23 | . . . . . . . 17 6 . . Robot Hit Streak 48 | 6 8 11 13 21 . . 39 12 35 48 Robot Miss Streak 3 | 1 1 1 2 . . . 3 1 1 . Penetration Max . | . . . . . . . . . . . Secondary Targets 5 | . . 1 2 . . . 1 . 1 . Max Gunslinging Chain 1 | . . 1 1 . . . 1 . 1 . Shots Hit Robots 234 | 10 24 11 38 8 . . 51 28 45 19 Core Hits 100 | 5 10 2 16 3 . . 28 14 16 6 Critical Hits 2 | . . . . . . . . 2 . . Critical Kills 1 | . . . . . . . . 1 . . Critical Parts Destroyed 1 | . . . . . . . . 1 . . Melee Attacks 12 | . . . . . . . . . 6 6 Impact 12 | . . . . . . . . . 6 6 Slashing . | . . . . . . . . . . . Piercing . | . . . . . . . . . . . Sneak Attacks . | . . . . . . . . . . . Combat Hostiles . | . . . . . . . . . . . Follow-up Attacks . | . . . . . . . . . . . Damage Inflicted 4161 | 114 382 159 564 125 . 20 855 646 825 471 Guns 2739 | 114 382 155 561 125 . . 532 401 341 128 Cannons 958 | . . . . . . . 323 127 326 182 Explosions 118 | . . . . . . . . 118 . . Melee 314 | . . . . . . . . . 158 156 Ramming 32 | . . 4 3 . . 20 . . . 5 Kinetic 2065 | 61 . . 300 125 . . 532 401 518 128 Thermal 1300 | 53 382 155 261 . . . . 118 149 182 Explosive . | . . . . . . . . . . . Electromagnetic 450 | . . . . . . . 323 127 . . Impact 314 | . . . . . . . . . 158 156 Slashing . | . . . . . . . . . . . Piercing . | . . . . . . . . . . . Highest Corruption 1 | . . . . . . . . . . 1 Average Corruption 1 | . . . . . . . . . . 1 Corruption Purged . | . . . . . . . . . . . Effects 2 | . . . . . . . . . . 2 Message Errors 2 | . . . . . . . . . . 2 Overload Shots . | . . . . . . . . . . . Overflow Damage 28 | . . . . . . . . 2 26 . Projectiles . | . . . . . . . . . . . Explosions 2 | . . . . . . . . 2 . . Melee 26 | . . . . . . . . . 26 . Knockbacks 5 | . . . . . . . . . 5 . Impact 2 | . . . . . . . . . 2 . Kinetic 3 | . . . . . . . . . 3 . Secondary . | . . . . . . . . . . . Self-Inflicted Damage . | . . . . . . . . . . . Shots . | . . . . . . . . . . . Rammed 9 | . . 1 1 . . 5 . . . 2 Targets Rammed 10 | . . 1 1 . . 5 . . . 3 Kicked . | . . . . . . . . . . . Crushed 1 | . . . . . . . . . . 1 Highest Temperature 588 | . 588 369 234 . . . 117 96 108 165 Average Temperature 101 | . 186 116 111 . . . 34 22 27 70 Received Heat Transfer 1327 | . 120 24 105 . . . 279 205 414 180 Effects 10 | . 9 1 . . . . . . . . Shutdowns 1 | . . 1 . . . . . . . . Energy Bleed 1 | . 1 . . . . . . . . . Matter Decay 1 | . 1 . . . . . . . . . Short Circuit 3 | . 3 . . . . . . . . . Damage (major) 2 | . 2 . . . . . . . . . Damage (core) 2 | . 2 . . . . . . . . . Siege Activations . | . . . . . . . . . . . Robots Corrupted . | . . . . . . . . . . . Combat Hostiles . | . . . . . . . . . . . Parts Fried 3 | . . . . . . . 2 . 1 . Impact Corruptions 2 | . . . . . . . . . 2 . Robots Melted 1 | . . 1 . . . . . . . . Combat Hostiles 1 | . . 1 . . . . . . . . Parts Melted 3 | . 2 1 . . . . . . . . Heat Transferred 2543 | 125 888 370 629 . . . . 50 259 222 Parts Sabotaged . | . . . . . . . . . . . Parts Stolen . | . . . . . . . . . . . Parts Stripped . | . . . . . . . . . . . Power Chain Reactions 1 | . . . . . . . . 1 . . Missiles Intercepted . | . . . . . . . . . . . Alert | -11 -10 -10 -9 -9 -9 -8 -8 -7 -7 -7 ------- Run | Scr Mat Min Mat Min Exi Min Mat Fac Low Low Peak Influence 234 | 20 197 148 168 68 . . 222 234 . . Initial 64 | . 11 64 . 13 . . . . . . Average 65 | 8 106 85 74 45 . . 57 73 . . Maximum Alert Level 1 | . . . . . . . 1 1 . . Low Security (%) 95 | 100 100 100 100 100 . 100 87 89 . . Level 1 4 | . . . . . . . 12 10 . . Level 2 . | . . . . . . . . . . . Level 3 . | . . . . . . . . . . . Level 4 . | . . . . . . . . . . . Level 5 . | . . . . . . . . . . . High Security . | . . . . . . . . . . . Max Security . | . . . . . . . . . . . Squads Dispatched 7 | . 1 . . . . . 4 1 . 1 Investigation 3 | . 1 . . . . . 2 . . . Extermination 1 | . . . . . . . . 1 . . Reinforcement . | . . . . . . . . . . . Assault 1 | . . . . . . . . . . 1 Garrison 2 | . . . . . . . 2 . . . Intercept . | . . . . . . . . . . . Construction Impeded . | . . . . . . . . . . . Haulers Reinforced . | . . . . . . . . . . . Stealth | -11 -10 -10 -9 -9 -9 -8 -8 -7 -7 -7 --------- Run | Scr Mat Min Mat Min Exi Min Mat Fac Low Low Distress Signals 4 | . 1 . 2 . . . 1 . . . Communications Jammed . | . . . . . . . . . . . Distress Signals . | . . . . . . . . . . . Times Spotted 69 | . 9 6 12 3 . . 16 7 9 7 Peak Tracking Total 9 | . 4 4 5 3 . . 3 3 7 9 Tactical Retreats 5 | . . 1 1 1 . . . . . 2 Traps | -11 -10 -10 -9 -9 -9 -8 -8 -7 -7 -7 ------- Run | Scr Mat Min Mat Min Exi Min Mat Fac Low Low Traps Triggered 5 | . 2 . 2 . . . . 1 . . Indirectly . | . . . . . . . . . . . Trap Hack Attempts . | . . . . . . . . . . . Triggered . | . . . . . . . . . . . Disarmed . | . . . . . . . . . . . Reprogrammed 1 | . 1 . . . . . . . . . Reused . | . . . . . . . . . . . Traps Extracted . | . . . . . . . . . . . Installed . | . . . . . . . . . . . Triggered . | . . . . . . . . . . . Machines | -11 -10 -10 -9 -9 -9 -8 -8 -7 -7 -7 ---------- Run | Scr Mat Min Mat Min Exi Min Mat Fac Low Low Machines Disabled 2 | . 1 . . . . . . 1 . . Max in Single Turn 1 | . 1 . . . . . . 1 . . Garrison Access 1 | . . . . . . . 1 . . . Machines Sabotaged . | . . . . . . . . . . . Garrisons Compromised . | . . . . . . . . . . . Overloaded Fab Kills . | . . . . . . . . . . . Fab Network Shutdowns . | . . . . . . . . . . . Hacking | -11 -10 -10 -9 -9 -9 -8 -8 -7 -7 -7 --------- Run | Scr Mat Min Mat Min Exi Min Mat Fac Low Low Machines Accessed 18 | . 3 1 2 . 4 . 4 3 . 1 Terminals 7 | . 2 . 1 . . . 3 1 . . Fabricators . | . . . . . . . . . . . Repair Stations 2 | . . . 1 . . . . 1 . . Recycling Units 2 | . 1 . . . . . . 1 . . Scanalyzers . | . . . . . . . . . . . Garrison Access 1 | . . . . . . . 1 . . . Total Hacks 78 | . 8 1 5 . 49 . 10 4 . 1 Successful 68 | . 5 1 3 . 49 . 6 3 . 1 Failed 10 | . 3 . 2 . . . 4 1 . . Catastrophic 1 | . 1 . . . . . . . . . Database Lockouts . | . . . . . . . . . . . Manual 6 | . 1 . 2 . . . 3 . . . Terminals 18 | . 6 . 3 . . . 8 1 . . Fabricators . | . . . . . . . . . . . Repair Stations 3 | . . . 2 . . . . 1 . . Recycling Units 4 | . 2 . . . . . . 2 . . Scanalyzers . | . . . . . . . . . . . Garrison Access 2 | . . . . . . . 2 . . . Terminal Hacks 61 | . 3 1 1 . 49 . 5 1 . 1 Record 51 | . . . . . 49 . 2 . . . Open Door 2 | . . 1 . . . . . . . 1 Emergency Access Points 1 | . 1 . . . . . . . . . Alert Level 1 | . . . . . . . 1 . . . Unreport Threat 2 | . . . . . . . 1 1 . . Locate Traps 1 | . . . . . . . 1 . . . Reprogram Traps 1 | . 1 . . . . . . . . . Dispatch Records 1 | . . . 1 . . . . . . . Transport Status 1 | . 1 . . . . . . . . . Fabricator Hacks . | . . . . . . . . . . . Repair Station Hacks 3 | . . . 2 . . . . 1 . . Scan Component 2 | . . . 1 . . . . 1 . . Repair 1 | . . . 1 . . . . . . . Recycling Unit Hacks 3 | . 2 . . . . . . 1 . . Retrieve Matter 2 | . 1 . . . . . . 1 . . Retrieve Components 1 | . 1 . . . . . . . . . Scanalyzer . | . . . . . . . . . . . Garrison Access Hacks 1 | . . . . . . . 1 . . . Seal Access 1 | . . . . . . . 1 . . . Unauthorized Hacks . | . . . . . . . . . . . Terminals . | . . . . . . . . . . . Fabricators . | . . . . . . . . . . . Repair Stations . | . . . . . . . . . . . Recycling Units . | . . . . . . . . . . . Scanalyzers . | . . . . . . . . . . . Garrison Access . | . . . . . . . . . . . Data Cores Recovered . | . . . . . . . . . . . Used . | . . . . . . . . . . . Hacking Detections 8 | . 2 . 1 . . . 3 2 . . Full Trace Events 4 | . 1 . 1 . . . 2 . . . Feedback Events . | . . . . . . . . . . . Feedback Blocked . | . . . . . . . . . . . Robot Schematics Acquired . | . . . . . . . . . . . Robots Built . | . . . . . . . . . . . Matter . | . . . . . . . . . . . Time . | . . . . . . . . . . . Total Robot Build Rating . | . . . . . . . . . . . Part Schematics Acquired . | . . . . . . . . . . . Parts Built . | . . . . . . . . . . . Matter . | . . . . . . . . . . . Time . | . . . . . . . . . . . Total Part Build Rating . | . . . . . . . . . . . Parts Repaired 1 | . . . 1 . . . . . . . Time 32 | . . . 32 . . . . . . . Parts Recycled . | . . . . . . . . . . . Recycled Matter . | . . . . . . . . . . . Retrieved Matter 52 | . 52 . . . . . . . . . Retrieved Components 10 | . 10 . . . . . . . . . Parts Scanalyzed . | . . . . . . . . . . . Part Schematics Acquired . | . . . . . . . . . . . Parts Damaged . | . . . . . . . . . . . Bothacking | -11 -10 -10 -9 -9 -9 -8 -8 -7 -7 -7 ------------ Run | Scr Mat Min Mat Min Exi Min Mat Fac Low Low Used RIF Installer . | . . . . . . . . . . . Robots Hacked . | . . . . . . . . . . . Non-combat . | . . . . . . . . . . . Combat . | . . . . . . . . . . . Robot Hacks Applied . | . . . . . . . . . . . Relay Couplers Released . | . . . . . . . . . . . Robots Rewired . | . . . . . . . . . . . Allies Hacked . | . . . . . . . . . . . Hacks Repelled . | . . . . . . . . . . . Allies | -11 -10 -10 -9 -9 -9 -8 -8 -7 -7 -7 -------- Run | Scr Mat Min Mat Min Exi Min Mat Fac Low Low Total Allies 4 | . . 4 . . . . . . . . Largest Group 4 | . . 4 1 . . . . . . . Highest-Rated Group 71 | . . 71 8 . . . . . . . Highest-Rated Ally 31 | . . 31 8 . . . . . . . Total Orders . | . . . . . . . . . . . Ally Attacks 44 | . . 28 14 . . . . . 2 . Total Damage 133 | . . 90 43 . . . . . . . Kills 1 | . . 1 . . . . . . . . Allies Corrupted 2 | . . . . . . . . . 2 . Allies Melted . | . . . . . . . . . . . Intel | -11 -10 -10 -9 -9 -9 -8 -8 -7 -7 -7 ------- Run | Scr Mat Min Mat Min Exi Min Mat Fac Low Low Robot Analysis Total . | . . . . . . . . . . . Derelict Logs Recovered 4 | . . 1 . 2 . . . . 1 . Drone Launches 11 | . . 3 6 . . . . . 2 . Drone Recoveries 8 | . . 2 6 . . . . . . . Exploration | -11 -10 -10 -9 -9 -9 -8 -8 -7 -7 -7 ------------- Run | Scr Mat Min Mat Min Exi Min Mat Fac Low Low Turns Passed 6942 | 125 389 408 484 420 1472 146 800 511 1001 1186 Spaces Moved 3736 | 62 198 217 193 253 921 87 230 285 577 713 Core 30 | 27 . . . . . . . . 3 . Treads 2247 | 35 198 217 193 253 921 87 99 . . 244 Legs 1459 | . . . . . . . 131 285 574 469 Wheels . | . . . . . . . . . . . Hover . | . . . . . . . . . . . Flight . | . . . . . . . . . . . Fastest Speed 50 | 50 160 160 160 160 160 160 150 120 120 150 Average Speed 155 | 134 160 160 160 160 160 160 155 129 154 155 Slowest Speed 750 | 200 160 160 180 160 160 160 180 150 750 166 Overloaded Moves . | . . . . . . . . . . . Propulsion Burnouts . | . . . . . . . . . . . Robots Hopped . | . . . . . . . . . . . Cave-ins Triggered . | . . . . . . . . . . . Exploration Rate (%) 42 | 5 44 47 16 63 94 27 23 7 71 67 Regions Visited 10 Branch Regions 6 Pre-discovered Areas 1 | . . . . . 1 . . . . . Known Exits Taken 7 | . . . 1 1 1 1 1 1 1 . Unknown Exits Taken 3 | 1 1 1 . . . . . . . . Scrap Searched 5 | . . 1 . 1 . . . . 2 1 Spaces Dug 6 | . . 6 . . . . . . . . Terrain Destroyed 9 | . . 6 . . . . . 3 . . Melee . | . . . . . . . . . . . Projectile 6 | . . 6 . . . . . . . . AOE 3 | . . . . . . . . 3 . . Terrain Rammed . | . . . . . . . . . . . Walls Destroyed . | . . . . . . . . . . . Machines Disabled . | . . . . . . . . . . . Actions | -11 -10 -10 -9 -9 -9 -8 -8 -7 -7 -7 --------- Run | Scr Mat Min Mat Min Exi Min Mat Fac Low Low Total 4577 | 90 241 247 320 258 920 91 610 399 640 761 Wait 512 | . . 11 77 1 . . 332 75 3 13 Move 3726 | 61 197 216 192 252 920 86 229 284 576 713 Hop . | . . . . . . . . . . . Pick Up 56 | 13 9 2 4 . . . 8 6 9 5 Fast Attach 10 | 1 1 . 3 . . . . 4 1 . Attach 34 | 7 . . 3 . . . 4 2 13 5 Detach . | . . . . . . . . . . . Swap 28 | . 6 3 6 . . . 4 4 1 4 Drop 29 | 1 9 2 6 . . . 2 8 1 . Fire 160 | 7 19 12 28 5 . . 31 16 30 12 Melee 12 | . . . . . . . . . 6 6 Ram . | . . . . . . . . . . . Kick . | . . . . . . . . . . . Crush 10 | . . 1 1 . . 5 . . . 3 Escape Stasis . | . . . . . . . . . . . Rewire . | . . . . . . . . . . . Trap . | . . . . . . . . . . . Miscellaneous . | . . . . . . . . . . . Route ------- -11/Scrapyard -10/Materials -10/Mines -9/Materials (discovered 2 exits: *Min x2) -9/Mines -9/Exiles (discovered 2 exits: *Min x2) -8/Mines (discovered 2 exits: *Mat x2) -8/Materials (discovered 2 exits: *Fac x2) -7/Factory -7/Lower Caves -7/Lower Caves (discovered 1 exit: *Fac) History --------- Turn | Location | Event 3 | -11/Scrapyard | Discovered new exit (range 15) 126 | -11/Scrapyard | Entered Materials 317 | -10/Materials | Build established: Mutant 480 | -10/Materials | Discovered new exit (range 13) 515 | -10/Materials | Entered Mines 518 | -10/Mines | Received a Mining Laser from a helpful Derelict 533 | -10/Mines | Met a Derelict bent on vengeance 584 | -10/Mines | Discovered new exit (range 9) 596 | -10/Mines | Found the Drone Emporium 605 | -10/Mines | Found Prototype Device 606 | -10/Mines | Identified Thief Drone Bay 692 | -10/Mines | Assisted by bots powering up and referring to "LRC-V3" 763 | -10/Mines | Excavation squad dispatched 763 | -10/Mines | A large section of the Mines collapsed 923 | -10/Mines | Entered Materials 923 | -9/Materials | Accompanied by 1 ally 923 | -9/Materials | Evolved 2 slots: Utility x2 924 | -9/Materials | Identified exit to Mines 1330 | -9/Materials | Repaired Hvy. Assault Rifle 1407 | -9/Materials | Entered Mines 1433 | -9/Mines | Learned 2 Materials zone layouts 1540 | -9/Mines | Learned 2 Materials zone layouts 1817 | -9/Mines | Deemed a non-threat by the Exiles lab entrance 1817 | -9/Mines | Discovered new exit (range 5) 1823 | -9/Mines | Identified exit to Exiles 1827 | -9/Mines | Entered Exiles 1853 | -9/Exiles | Discovered new exit (range 17) 1867 | -9/Exiles | Met 8R-AWN 1893 | -9/Exiles | Met EX-HEX 1994 | -9/Exiles | Met EX-DEC 2039 | -9/Exiles | Learned location of Zion (-7) 2104 | -9/Exiles | Discovered new exit (range 12) 2205 | -9/Exiles | Met EX-BIN 2502 | -9/Exiles | Visited The Gauntlet 2827 | -9/Exiles | Aligned with FarCom system 2829 | -9/Exiles | Given EX-Vault access code 3063 | -9/Exiles | Identified exit to Mines 3299 | -9/Exiles | Entered Mines 3395 | -8/Mines | Discovered new exit (range 8) 3432 | -8/Mines | Discovered new exit (range 8) 3443 | -8/Mines | Identified exit to Materials 3445 | -8/Mines | Entered Materials 3445 | -8/Materials | Evolved 2 slots: Propulsion x1, Utility x1 3446 | -8/Materials | Identified exit to Factory 3636 | -8/Materials | Garrison activated, responded to threat 4168 | -8/Materials | Discovered exit to Factory (range 17) 4245 | -8/Materials | Entered Factory 4245 | -7/Factory | Evolved 2 slots: Propulsion x1, Utility x1 4544 | -7/Factory | Build established: Scavenger-Mutant 4748 | -7/Factory | Discovered new exit (range 3) 4750 | -7/Factory | Identified exit to Lower Caves 4756 | -7/Factory | Entered Lower Caves 4757 | -7/Lower Caves | Encountered a Warlord checkpoint 4765 | -7/Lower Caves | Learned 4 Factory zone layouts 5222 | -7/Lower Caves | Attracted the attention of an 0b10 outpost 5258 | -7/Lower Caves | Core integrity fell below 50% 5277 | -7/Lower Caves | Core integrity fell below 20% 5318 | -7/Lower Caves | Lost 15 parts (2p4n2u7w) 5540 | -7/Lower Caves | Build established: Mutant 5641 | -7/Lower Caves | Discovered new exit (range 14) 5755 | -7/Lower Caves | Identified exit to Lower Caves 5757 | -7/Lower Caves | Entered another Lower Caves area 5802 | -7/Lower Caves | Discovered new exit (range 16) 5835 | -7/Lower Caves | Encountered a Warlord checkpoint 5849 | -7/Lower Caves | Identified exit to Factory 5901 | -7/Lower Caves | Build established: Scavenger-Mutant 6832 | -7/Lower Caves | Attracted the attention of an 0b10 outpost 6943 | -7/Lower Caves | Destroyed by Y-64 Sentinel with KE Penetrator Last Messages --------------- 06839_ G-47 Trooper destroyed. 06839_ Penetrated by Slug. 06846_ Aluminum Leg fries itself beyond repair. 06857_ Slammed into L-41 Fighter. 06861_ Crushed L-41 Fighter. 06861_ L-41 Fighter destroyed. 06862_ Acquired 22 matter. 06872_ Imp. Deuterium Engine fries itself beyond repair. 06874_ Core Shielding fries itself beyond repair. 06885_ G-47 Trooper destroyed. 06896_ Aluminum Leg fries itself beyond repair. 06902_ Z%IFGBR7LL2EWQMW14K1XY0GFNGFPLVE/<< 06905_ Penetrated by Slug. 06917_ Slug penetrates Wall. 06920_ Phase Cannon destroyed. 06927_ Penetrated by Slug. 06930_ Slug penetrates Wall. 06933_ Penetrated by Slug. 06940_ Slug penetrates Wall. 06943_ Penetrated by Slug. Map ----- +----------------------------------------------------+ | ???????????????????######?######## ### | | ?????????????????###???######## ##### | | ?????????????????#???######?### ###### | | ??????????????????#?##??####?## #??### | | ??????????????????#? ?#?#?#### ####### ### | | ??????????????????## ??###?#### ###"""##" ###? | | ?????????????????????? ##### ## ###"" "" ##### | | ????????????????????? ?#### ?## ###" ##### | | ??????????????????#? ## # ###" " " ### | | ?????????????????? ? ? # ### ""##" ### | | ?????????????????? ##### | | ??????????????????## #### ### | | ???????????????####? ? ##### #### ##### | | ????????????????###? ?####### ##### #### | | ??????????????##?### ######## ###### ### | | ??????????????####### ###?#### ## ####### ## | | ?????????????#??? ?### ##### ########## ## | | ????????????? ? #?# # ########## ##### | | ?????????????? ### #### #### ##### | | ????????????? #? ##? #?######### ##### | | ???????????? ?####? ####### % % ############ | | ???????????? ##### ####### ######## ############ | | ?????????????###### #?##### # """""# ######## ### | | ?????????????#### #### " # "# ####### ## | | ??????????????### Y##" %## "# ###### | | ??????????????### @## # "# #### | | ?????????????##### # % "# ## | | ?????????????###?# # "# ## | | ??????????????#### ###### ### ### ### | | ?????????????##?## ####### ####### | | ??????????????##?############################## | | ???????????????################################# | | ????????????##??#############################?#### | | ???????????????##?########?####################### | | ????????????????#########################?##?##### | | ????????????????##??######?#############?###???#?# | | ????????????????##?#####################?##?####?? | | ????????????????#?###?#??####??#######??##?#?####? | | ????????????????#?###?#??###?#??#####??######?#### | | ??????????????????#????#????#?###?#?#??###???###?? | | ????????????????????######?#?###?###?#???#??#???#? | | ????????????????????#??##?#?##????##????????#?#?## | | ??????????????????????##?????#??#?#??#??#???#????? | | ????????????????????????????###?#??????????????#?? | | ????????????????????????????#??#?????#???????????? | | ?????????????????????????????????????????????????? | | ?????????????????????????????????????????????????? | | ?????????????????????????????????????????????????? | | ?????????????????????????????????????????????????? | | | +----------------------------------------------------+ Best States ------------- Heat Dissipation 34 Energy Generation 18 Energy Capacity 265 Matter Stores 300 Matter Capacity 300 Sight Range 18 Robot Scan Range 13 Terrain Scan Range 16 Terrain Scan Density 210 Resistance: KI 20 Resistance: TH 20 Resistance: EX 20 Resistance: EM 20 Resistance: I 20 Resistance: S 20 Resistance: P 20 Power Shielding 33 Evasion (%) 50 Recoil Reduction 3 Offensive Hacking 10 Item Schematics ----------------- None Robot Schematics ------------------ None Fabricated ------------ Nothing Alien Tech Used ----------------- None Achievements -------------- Omniscient Cartographer Challenges ------------ None Game ------ Seed MomentumTachyonTearclaws Manual? 0 Play Time 00:46:15 Cumulative 17.6 hours Start 2020.10.20 @ 21:42:17 End 2020.10.20 @ 22:29:38 Sessions 1 Manual Loads 0 Difficulty Adventurer Special Mode None Game No. 36 Rogue 19 Adventurer 17 Explorer 0 Win Type - Total 0 Types 0/0/0/0/0/0/0/0/0 Lore% 12 Gallery% 24 Achievement% 19 Wizard Run 0 Options --------- ASCII 0 Keyboard 0 Movement Mouse Keybinds 0 Fullscreen 1 Font 18/SmallcapsGlow Map View 76x50 Tactical HUD 1 Map Filters NONE Filters NONE Steam 1 RUN: 0fca2825-314a-487e-865d-ef4fc5c6dc40